Cogmind - Beta 16.1 @@@ ROGUE MODE // 2026.02.22 @ 01:21:33 Player: Storm Mk9 Result: Destroyed by S-10 Pest with Light Assault Rifle Performance ------------- Evolutions (0) 0 Regions Visited (2) 400 Robots Destroyed (19) 95 Value Destroyed (514) 514 Prototype IDs (2) 40 Alien Tech Used (0) 0 Bonus (0) 0 TOTAL SCORE: 1049 Bonus ------- None Cogmind --------- Core Integrity 0/250 Matter 278/300 Energy 248/250 System Corruption 2% Temperature Cool (0) Movement Rolling (119) Ox2 Location -10/Subcaves Parts ------- > --- POWER (1) -------- Ion Engine > --- PROPULSION (2) --- Wheel Subdweller Monowheel > --- UTILITY (2) ------ Heat Sink Huge Storage Unit > --- WEAPON (2) ------- Battle Rifle Battle Rifle > --- INVENTORY (25) --- Ion Engine Ion Engine Improved Ion Engine Heat Sink High-capacity Matter Pod (200) Assault Rifle Assault Rifle Assault Rifle Light Assault Rifle Battle Rifle Battle Cannon Battle Cannon Peak State ------------ > --- POWER ------------ Ion Engine > --- PROPULSION ------- Wheel Subdweller Monowheel > --- UTILITY ---------- Heat Sink Huge Storage Unit > --- WEAPON ----------- Battle Rifle Battle Rifle > --- INVENTORY -------- Ion Engine Ion Engine Improved Ion Engine Heat Sink High-capacity Matter Pod Assault Rifle Assault Rifle Assault Rifle Light Assault Rifle Battle Rifle Battle Cannon Battle Cannon [Rating: 11] Favorites ----------- Power Ion Engine Engine Ion Engine Propulsion Light Treads Treads Light Treads Wheel Wheel Utility Huge Storage Unit Device Heat Sink Storage Huge Storage Unit Protection Light Armor Plating Weapon Light Assault Rifle Energy Gun Particle Gun Ballistic Gun Light Assault Rifle Ballistic Cannon Battle Cannon Build | -11 -10 -10 ------- Run | Yrd Mat Sub Slots Evolved . | . . . Power . | . . . Propulsion . | . . . Utility . | . . . Weapon . | . . . Parts Attached 22 | 7 7 8 Power 3 | 1 2 . Engine 3 | 1 2 . Core . | . . . Reactor . | . . . Propulsion 4 | 2 . 2 Treads 2 | 2 . . Leg . | . . . Wheel 2 | . . 2 Hover . | . . . Flight . | . . . Utility 6 | 2 3 1 Device 3 | 1 1 1 Storage 2 | 1 1 . Processor . | . . . Hackware . | . . . Protection 1 | . 1 . Artifact . | . . . Weapon 9 | 2 2 5 Energy Gun 1 | . 1 . Energy Cannon . | . . . Ballistic Gun 7 | 2 1 4 Ballistic Cannon 1 | . . 1 Launcher . | . . . Special Weapon . | . . . Impact Weapon . | . . . Slashing Weapon . | . . . Piercing Weapon . | . . . Special Melee Weapon . | . . . Unidentified Prototypes . | . . . Parts Lost 7 | . 2 5 Power . | . . . Propulsion 2 | . . 2 Utility 2 | . 1 1 Weapon 3 | . 1 2 Highest Loss Streak 3 | . 1 3 To Critical Strikes . | . . . Average Backups 8 | 3 7 10 Power 2 | . 1 2 Propulsion . | 1 1 . Utility 1 | . 1 2 Weapon 3 | 1 2 5 Tool/Special . | . . . Unused Backups 10 | . 2 8 Power 5 | . 2 3 Propulsion . | . . . Utility 1 | . . 1 Weapon 4 | . . 4 Tool/Special . | . . . Average Slot Usage (%) 99 | . 99 99 Engine 14 | . 14 14 Treads 22 | . 28 14 Wheel 5 | . . 13 Device 8 | . 5 12 Storage 14 | . 14 14 Protection 5 | . 8 1 Energy Gun 6 | . 9 1 Ballistic Gun 21 | . 17 26 Peak Build Rating 11 | 7 8 11 Average Rating 8 | 4 7 9 On Entrance 5 | . 7 8 Avg Prop Armor Cover (%) 11 | . . 11 Naked Turns . | . . . Heaviest Build 92 | 14 92 92 Greatest Support 40 | 40 40 40 Greatest Overweight (x) 9 | . 2 9 Average Overweight (x) 4 | . . 7 Largest Inventory Capacity 25 | 8 25 25 Average Capacity 20 | 7 17 25 Most Carried 13 | 5 9 13 Average Carried 8 | 3 7 10 Final Capacity 25 | 8 25 25 Final Carried 12 | 3 9 12 Class Distribution -------------------- 100% | Mutant Dominant Class ---------------- Mutant | -10/Materials Mutant | -10/Subcaves Resources | -11 -10 -10 ----------- Run | Yrd Mat Sub Matter Collected 857 | 207 387 263 Remotely . | . . . Salvage Created 742 | 20 551 171 Parts 47 | 4 34 9 Haulers Intercepted 2 | . 2 . Recyclers Shooed 1 | . 1 . Parts Field Recycled . | . . . Retrieved Matter . | . . . Parts Self-Destructed 1 | . . 1 Prevented . | . . . Parts Restored . | . . . Kills | -11 -10 -10 ------- Run | Yrd Mat Sub Combat Hostiles Destroyed 16 | . 11 5 Guns 16 | . 11 5 Classes Destroyed 6 | 1 3 2 Tunneler 1 | 1 . . Hauler 2 | . 2 . Swarmer 4 | . 3 1 Grunt 8 | . 8 . Sentry 1 | . . 1 Subdweller 3 | . . 3 Best Kill Streak 5 | 1 5 2 Combat Bots Only 5 | . 5 2 Max Kills in Single Turn 1 | 1 1 1 Gunslinging . | . . . Exploded . | . . . Melee . | . . . Uniques/NPCs Destroyed . | . . . Combat | -11 -10 -10 -------- Run | Yrd Mat Sub Hostile Shots Fired 102 | . 67 35 Missed 21 | . 15 6 Hits 81 | . 52 29 Projectile 81 | . 52 29 Damage Taken 1297 | . 584 713 Core 253 | . 95 158 Absorbed by Shields . | . . . Core Remaining (%) 100 | 100 . . Volleys Fired 76 | 2 53 21 Largest 2 | 2 2 2 Hottest 85 | 40 85 85 Shots Fired 148 | 4 104 40 Gun 145 | 4 104 37 Cannon 3 | . . 3 Launcher . | . . . Special . | . . . Kinetic 126 | 4 89 33 Thermal 22 | . 15 7 Explosive . | . . . Electromagnetic . | . . . Robot Hit Streak 27 | 4 9 27 Robot Miss Streak 6 | . 6 2 Penetration Max . | . . . Secondary Targets 2 | . 1 1 Max Gunslinging Chain 1 | . 1 1 Shots Hit Robots 97 | 4 63 30 Core Hits 40 | 2 30 8 Critical Kills . | . . . Critical Parts Destroyed 1 | . 1 . Critical Strikes 2 | . 1 1 Destroy 2 | . 1 1 Melee Attacks . | . . . Impact . | . . . Slashing . | . . . Piercing . | . . . Sneak Attacks . | . . . Combat Hostiles . | . . . Follow-up Attacks . | . . . Damage Inflicted 1102 | 40 705 357 Guns 1102 | 40 705 357 Cannons . | . . . Explosions . | . . . Melee . | . . . Ramming . | . . . Kinetic 864 | 40 545 279 Thermal 238 | . 160 78 Explosive . | . . . Electromagnetic . | . . . Impact . | . . . Slashing . | . . . Piercing . | . . . Highest Corruption 2 | . 2 2 Average Corruption 2 | . 2 2 Corruption Purged . | . . . Corruption Blocked . | . . . Effects 43 | . 21 22 Message Errors 12 | . 5 7 Matter Fused 3 | . 2 1 Heat Flow Errors 9 | . 3 6 Energy Discharges 4 | . 2 2 Parts Fused 1 | . 1 . Data Loss (minor) 7 | . 5 2 Data Loss (major) 4 | . 1 3 Misfires 1 | . . 1 Alerts 1 | . 1 . Weapon Failures 1 | . 1 . Overload Shots . | . . . Overflow Damage . | . . . Projectiles . | . . . Explosions . | . . . Melee . | . . . Knockbacks . | . . . Impact . | . . . Kinetic . | . . . Secondary . | . . . Self-Inflicted Damage . | . . . Shots . | . . . Rammed . | . . . Targets Rammed . | . . . Kicked . | . . . Crushed . | . . . Highest Temperature 281 | . 281 226 Average Temperature 56 | . 52 69 Received Heat Transfer 408 | . 273 135 Effects 1 | . 1 . Energy Bleed 1 | . 1 . Siege Activations . | . . . Martial Activations . | . . . Shielding Activations . | . . . Robots Disrupted . | . . . Combat Hostiles . | . . . Robots Corrupted . | . . . Combat Hostiles . | . . . Parts Fried . | . . . Impact Corruptions . | . . . Robots Melted . | . . . Combat Hostiles . | . . . Parts Melted 3 | . 1 2 Heat Transferred 555 | . 370 185 Parts Sabotaged . | . . . Parts Stolen . | . . . Parts Stripped . | . . . Power Chain Reactions . | . . . Alert | -11 -10 -10 ------- Run | Yrd Mat Sub Maximum Alert Level . | . . . Low Security (%) 100 | 100 100 . Level 1 . | . . . Level 2 . | . . . Level 3 . | . . . Level 4 . | . . . Level 5 . | . . . High Security . | . . . Max Security . | . . . Peak Influence 102 | 5 102 . Initial . | . . . Average 16 | . 16 . Influence Increases 387 | 5 327 55 Destroy 0b10 Robot/C 260 | . 220 40 Destroy 0b10 Robot/NC 25 | 5 20 . Destroy Leader 44 | . 44 . Successful Hack 13 | . 13 . Lose Combat Pursuer 45 | . 30 15 Influence Decreases 352 | 5 327 20 Time Decay 322 | 5 307 10 Lost Part 30 | . 20 10 Squads Dispatched 1 | . 1 . Investigation . | . . . Extermination . | . . . Reinforcement 1 | . 1 . Assault . | . . . Garrison . | . . . Intercept . | . . . Searches Triggered . | . . . Construction Impeded . | . . . Haulers Reinforced . | . . . Active Scanning Responses . | . . . Cargo Convoy Interrupts . | . . . Stealth | -11 -10 -10 --------- Run | Yrd Mat Sub Distress Signals 4 | . 4 . Communications Jammed . | . . . Distress Signals . | . . . Times Spotted 30 | . 24 6 Peak Tracking Total 5 | . 5 3 Tactical Retreats 3 | . 2 1 Traps | -11 -10 -10 ------- Run | Yrd Mat Sub Traps Triggered 3 | . 1 2 Indirectly . | . . . Trap Hack Attempts . | . . . Triggered . | . . . Disarmed 6 | . 6 . Reprogrammed . | . . . Reused . | . . . Traps Extracted . | . . . Installed . | . . . Triggered . | . . . Machines | -11 -10 -10 ---------- Run | Yrd Mat Sub Machines Disabled . | . . . Max in Single Turn . | . . . Machines Repaired . | . . . Machines Dismantled . | . . . Machines Sabotaged . | . . . Overloaded Fab Kills . | . . . Hacking | -11 -10 -10 --------- Run | Yrd Mat Sub Machines Accessed 6 | . 6 . Terminals 5 | . 5 . Fabricators . | . . . Repair Stations . | . . . Recycling Units 1 | . 1 . Scanalyzers . | . . . Garrison Access . | . . . Total Hacks 22 | . 22 . Successful 17 | . 17 . Failed 5 | . 5 . Catastrophic . | . . . Database Lockouts . | . . . Manual 17 | . 17 . Terminals 21 | . 21 . Fabricators . | . . . Repair Stations . | . . . Recycling Units 1 | . 1 . Scanalyzers . | . . . Garrison Access . | . . . Terminal Hacks 6 | . 6 . Robot Analysis 2 | . 2 . Prototype ID Bank 1 | . 1 . Locate Traps 2 | . 2 . Disarm Traps 1 | . 1 . Fabricator Hacks . | . . . Repair Station Hacks . | . . . Recycling Unit Hacks 1 | . 1 . Report Inventory 1 | . 1 . Scanalyzer . | . . . Garrison Access Hacks . | . . . Unauthorized Hacks 10 | . 10 . Terminals 10 | . 10 . Track 2 | . 2 . Botnet 3 | . 3 . Skim 5 | . 5 . Fabricators . | . . . Repair Stations . | . . . Recycling Units . | . . . Scanalyzers . | . . . Garrison Access . | . . . Data Cores Recovered . | . . . Used . | . . . Hacking Detections 5 | . 5 . Full Trace Events . | . . . Feedback Events . | . . . Feedback Blocked . | . . . Robot Schematics Acquired . | . . . Robots Built . | . . . Authchips . | . . . Time . | . . . Total Robot Build Rating . | . . . Part Schematics Acquired . | . . . Parts Built . | . . . Authchips . | . . . Time . | . . . Total Part Build Rating . | . . . Part Studies Acquired . | . . . Parts Repaired . | . . . Time . | . . . Parts Recycled . | . . . Recycled Matter . | . . . Retrieved Matter . | . . . Retrieved Components . | . . . Parts Scanalyzed . | . . . Part Schematics Acquired . | . . . Parts Damaged . | . . . Bothacking | -11 -10 -10 ------------ Run | Yrd Mat Sub Used RIF Installer . | . . . Robots Hacked . | . . . Non-combat . | . . . Combat . | . . . Robot Hacks Applied . | . . . Relay Couplers Released . | . . . Fabnet Peak Effective % . | . . . Robots Rewired . | . . . Allies Hacked . | . . . Hacks Repelled . | . . . Allies | -11 -10 -10 -------- Run | Yrd Mat Sub Total Allies . | . . . Largest Group . | . . . Highest-Rated Group . | . . . Highest-Rated Ally . | . . . Total Orders . | . . . Ally Attacks . | . . . Total Damage . | . . . Kills . | . . . Allies Corrupted . | . . . Allies Melted . | . . . Intel | -11 -10 -10 ------- Run | Yrd Mat Sub Active Infowar (turns) 569 | 12 557 . Seismic 569 | 12 557 . Robot Analysis Total 2 | . 2 . Derelict Logs Recovered . | . . . Drone Launches . | . . . Drone Recoveries . | . . . Exploration | -11 -10 -10 ------------- Run | Yrd Mat Sub Turns Passed 3579 | 85 2008 1486 Spaces Moved 1301 | 52 553 696 Core 18 | 18 . . Treads 626 | 34 553 39 Legs . | . . . Wheels 657 | . . 657 Hover . | . . . Flight . | . . . Fastest Speed 50 | 50 160 119 Average Speed 207 | 121 223 201 Slowest Speed 480 | 160 320 480 Overloaded Moves . | . . . Propulsion Burnouts . | . . . Robots Hopped . | . . . Potential Cave-ins . | . . . Cave-ins Triggered . | . . . Exploration Rate (%) 42 | 3 90 33 Regions Visited 2 Branch Regions 1 Pre-discovered Areas 1 | . 1 . Known Exits Taken . | . . . Unknown Exits Taken 2 | 1 1 . Scrap Searched 2 | . . 2 Spaces Dug . | . . . Terrain Destroyed . | . . . Melee . | . . . Projectile . | . . . AOE . | . . . Terrain Rammed . | . . . Walls Destroyed . | . . . Machines Disabled . | . . . Actions | -11 -10 -10 --------- Run | Yrd Mat Sub Total 2044 | 70 1230 744 Wait 608 | . 597 11 Move 1299 | 51 552 696 Hop . | . . . Pick Up 31 | 10 13 8 Fast Attach . | . . . Attach 14 | 7 2 5 Detach . | . . . Swap 9 | . 6 3 Drop 6 | . 6 . Fire 76 | 2 53 21 Melee . | . . . Ram . | . . . Kick . | . . . Crush . | . . . Escape Stasis . | . . . Rewire 1 | . 1 . Trap . | . . . Miscellaneous . | . . . Route ------- -11/Scrapyard -10/Materials (discovered 6 exits: [*Mat x3] / [*Min x2] / [*Sub]) -10/Subcaves (discovered 3 exits: Mat x2 / Rec) History --------- Turn | Location | Event 9 | -11/Scrapyard | Discovered new exit (range 15) 86 | -11/Scrapyard | Entered Materials 304 | -10/Materials | Build established: Mutant 366 | -10/Materials | Discovered new exit (range 13) 457 | -10/Materials | Discovered new exit (range 16) 701 | -10/Materials | Discovered new exit (range 16) 850 | -10/Materials | Discovered new exit (range 16) 1006 | -10/Materials | Discovered new exit (range 7) 1448 | -10/Materials | Discovered new exit (range 13) 1544 | -10/Materials | Learned location of 2 exits from Subcaves 1605 | -10/Materials | Loaded intel: 1 repair station location 1655 | -10/Materials | Learned location of 2 exits from Materials 1693 | -10/Materials | Learned Storage interactive machine intel 1719 | -10/Materials | Learned location of 1 exit from Recycling 1736 | -10/Materials | Learned Materials repair station intel 1762 | -10/Materials | Learned location of 2 exits from Subcaves 1791 | -10/Materials | Learned location of Storage (-8) 1832 | -10/Materials | Learned 4 Subcaves zone layouts 2094 | -10/Materials | Entered Subcaves 2095 | -10/Subcaves | Approached by a straggling Scientist 2095 | -10/Subcaves | Identified exit to Materials 2095 | -10/Subcaves | Identified exit to Recycling 2195 | -10/Subcaves | Core integrity fell below 50% 2244 | -10/Subcaves | Core integrity fell below 20% 2274 | -10/Subcaves | Lost 3 parts (1n1u1w) 3580 | -10/Subcaves | Destroyed by S-10 Pest with Light Assault Rifle Last Messages --------------- 03467_ Lgt. Treads destroyed. 7K-R4L(c): "I think it's somewhere southwest of here" 03471_ FM-7PU(R) suffers critical hit (Destroy). 03475_ Sub. Machine Gun destroyed. 03480_ FM-7PU(R) destroyed. 03480_ Switching to secondary target: B1-R7T(R). 03483_ B1-R7T(R) destroyed. 03488_ Acquired 27 matter. 03490_ Acquired 40 matter. 03491_ Subatomizers dissect the Sub. Monowheel. 03496_ Acquired Sub. Monowheel. 03501_ Subatomizers dissect the Sub. Optics. 7K-R4L(c): "I think it's somewhere southwest of here" 03567_ System corrupted: Energy discharge (-60). 7K-R4L(c): "I think it's somewhere southwest of here" 03580_ S-10 Pest destroyed. Map ----- +----------------------------------------------------+ | ?????????????????????????????????????????????????? | | ?????????????????????????????????????????????????? | | ?????????????????????????????????????????????????? | | ?????????????????????????????????????????????????? | | ?????????????????????????????????????????????????? | | ?????????????????????????????????????????????????? | | ?????????????????####?????????????????????????#### | | ????????????????## #######???????????????##### # | | ????????????????# ## #???????####???? | | ??############### ???????# ##???? | | ??##" # ## ## ???????# ###??? | | ??"" #####???????# ##??# | | ??" ##???????????# #??# | | ?? ## ## ####?????????# #??# | | ??###### #?????????# #### | | ??## ## ## #?????????# ## ## | | ?? ### #??????#### ## | | ????????????????? ??????## ## | | ??????????????????# ??????# ## ### | | ??????????? ???#??# ??????# ## ### | | ??????????? ## ## %##???## ## ##?## | | ?????????? ##??# #### #??# | | ?????????? ##?## ##??## ##??# | | ????????? & ##?# #????####???# | | ????????? =% % ### ##???????????# | | ?????????# @ ## #?????###????# | | ???????????# c ##????## ###### | | ???????????# ##?????# ## | | ???????????## ## ######??????# | | ????????????# ??## #????????????# | | ???????????# * ?????# ????????????### | | ??????????? ??????## % ?????????????# | | ??????????? ?????????## s ??????????# ### | | ????????????????????????## ??????>??## ##?# | | ?????????????????????????# ?????????## ##?## | | ??????????????????????????#### ??????????#####?## | | ?????????????????????????????? ??????# ###### | | ??????????????????????????????? ?????? | | ?????????????????????????????????????# | | ????????????????????????????????????? | | ????????????????????????????????????? ### | | ?????????????????????????????????????? #??## | | ????????????????????????????????????? #????# | | ?????????????????????????????????????? ?????? | | ?????????????????????????????????????? #??????? | | ??????????????????????????????????????? #????????? | | ?????????????????????????????????????????????????? | | ?????????????????????????????????????????###?????# | | ????????????????????????????????????????## ###??## | | ???????????????????????????????????????## #### | +----------------------------------------------------+ Best States ------------- Heat Dissipation 35 Energy Generation 10 Energy Capacity 250 Matter Stores 300 Matter Capacity 300 Sight Range 16 Terrain Scan Density 10 Armor Coverage 150 Evasion (%) 50 Recoil Reduction 2 Item Schematics ----------------- None Robot Schematics ------------------ None Fabricated ------------ Nothing Repaired ---------- Nothing Studied --------- None Alien Tech Used ----------------- None Achievements -------------- None Challenges ------------ None Game ------ Seed TechSuperchargedRifle Manual? 0 Play Time 00:15:10 Cumulative 92.9 hours Start 2026.02.22 @ 01:07:10 End 2026.02.22 @ 01:21:33 Sessions 1 Manual Loads 0 Difficulty Rogue Special Mode None Game No. 103 Rogue 84 Adventurer 0 Explorer 19 Win Type - Total 0 Types 0/0/0/0/0/0/0/0/0/0 Lore% 57 Gallery% 46 Achievement% 41 Wizard Run 0 Options --------- Layout 1 ASCII 0 Keyboard 0 Movement Mouse Keybinds 0 Fullscreen 2 Font 16/SmallcapsGlow Map View 50x40 Zoom Use 0% Tactical HUD 1 Map Filters NONE Filters NONE Steam SD RUN: 2ed58dde-8a54-4494-a6c6-da3bd27959f6